[Event "Titled Tuesday Blitz January 25 2022"]
[White "Kamsky, Gata"]
[Black "Gnechko, Ruslan"]
[WhiteFideId "2000024"]
[BlackFideId "14135868"]
[WhiteElo "2645"]
[BlackElo "2289"]
[Result "1-0"]
[Round "10"]
[TimeControl "180+1"]
[Date "2022.01.26"]
[WhiteClock "0:00:07"]
[BlackClock "0:00:01"]

1. e4 {[%clk 0:03:00]}  c6 {[%clk 0:02:59]} 2. d3 {[%clk 0:03:00]}  d5 {[%clk 0:03:00]} 3. Nf3 {[%clk 0:03:00]}  g6 {[%clk 0:02:58]} 4. e5 {[%clk 0:02:59]}  Bg7 {[%clk 0:02:57]} 5. d4 {[%clk 0:03:00]}  Bg4 {[%clk 0:02:57]} 6. Nbd2 {[%clk 0:02:59]}  e6 {[%clk 0:02:56]} 7. h3 {[%clk 0:02:59]}  Bxf3 {[%clk 0:02:56]} 8. Nxf3 {[%clk 0:03:00]}  Nd7 {[%clk 0:02:54]} 9. c3 {[%clk 0:03:00]}  Ne7 {[%clk 0:02:54]} 10. Bd3 {[%clk 0:03:00]}  c5 {[%clk 0:02:54]} 11. h4 {[%clk 0:02:45]}  h6 {[%clk 0:02:53]} 12. O-O {[%clk 0:02:33]}  Nc6 {[%clk 0:02:43]} 13. a3 {[%clk 0:02:19]}  cxd4 {[%clk 0:02:42]} 14. cxd4 {[%clk 0:02:18]}  Rc8 {[%clk 0:02:40]} 15. Be3 {[%clk 0:02:12]}  Nb6 {[%clk 0:02:17]} 16. Qe2 {[%clk 0:02:08]}  O-O {[%clk 0:02:07]} 17. Rac1 {[%clk 0:02:06]}  Na5 {[%clk 0:02:01]} 18. h5 {[%clk 0:02:04]}  g5 {[%clk 0:01:59]} 19. Nh2 {[%clk 0:01:57]}  Nac4 {[%clk 0:01:47]} 20. Ng4 {[%clk 0:01:57]}  Qe7 {[%clk 0:01:41]} 21. f4 {[%clk 0:01:36]}  Nxe3 {[%clk 0:01:41]} 22. Qxe3 {[%clk 0:01:36]}  Rxc1 {[%clk 0:01:41]} 23. Rxc1 {[%clk 0:01:29]}  Rc8 {[%clk 0:01:36]} 24. Rxc8+ {[%clk 0:01:28]}  Nxc8 {[%clk 0:01:36]} 25. fxg5 {[%clk 0:01:28]}  Qxg5 {[%clk 0:01:35]} 26. Qxg5 {[%clk 0:01:27]}  hxg5 {[%clk 0:01:35]} 27. Kf2 {[%clk 0:01:03]}  Ne7 {[%clk 0:01:34]} 28. Ke3 {[%clk 0:00:52]}  Nc6 {[%clk 0:01:34]} 29. Bb5 {[%clk 0:00:51]}  Ne7 {[%clk 0:01:33]} 30. Bd3 {[%clk 0:00:46]}  Nc6 {[%clk 0:01:33]} 31. b4 {[%clk 0:00:45]}  a6 {[%clk 0:01:32]} 32. b5 {[%clk 0:00:36]}  axb5 {[%clk 0:01:31]} 33. Bxb5 {[%clk 0:00:36]}  Ne7 {[%clk 0:01:31]} 34. a4 {[%clk 0:00:34]}  b6 {[%clk 0:01:31]} 35. Nh2 {[%clk 0:00:32]}  f6 {[%clk 0:01:26]} 36. exf6 {[%clk 0:00:27]}  Bxf6 {[%clk 0:01:26]} 37. g4 {[%clk 0:00:27]}  Kf7 {[%clk 0:01:19]} 38. Bd7 {[%clk 0:00:26]}  e5 {[%clk 0:01:13]} 39. dxe5 {[%clk 0:00:25]}  Bxe5 {[%clk 0:01:14]} 40. Nf3 {[%clk 0:00:25]}  Kf6 {[%clk 0:00:54]} 41. Nxe5 {[%clk 0:00:25]}  Kxe5 {[%clk 0:00:54]} 42. h6 {[%clk 0:00:25]}  d4+ {[%clk 0:00:48]} 43. Kd3 {[%clk 0:00:24]}  Ng6 {[%clk 0:00:34]} 44. h7 {[%clk 0:00:24]}  Nh8 {[%clk 0:00:30]} 45. Be8 {[%clk 0:00:24]}  Kd5 {[%clk 0:00:30]} 46. Bd7 {[%clk 0:00:16]}  Nf7 {[%clk 0:00:28]} 47. Bf5 {[%clk 0:00:15]}  Ne5+ {[%clk 0:00:27]} 48. Kc2 {[%clk 0:00:15]}  Nf7 {[%clk 0:00:28]} 49. Kb3 {[%clk 0:00:14]}  Kc5 {[%clk 0:00:25]} 50. Be4 {[%clk 0:00:13]}  Nh8 {[%clk 0:00:24]} 51. Bf5 {[%clk 0:00:12]}  Nf7 {[%clk 0:00:24]} 52. Kc2 {[%clk 0:00:11]}  Kd5 {[%clk 0:00:19]} 53. Bg6 {[%clk 0:00:11]}  Nh8 {[%clk 0:00:18]} 54. Bd3 {[%clk 0:00:12]}  Kc5 {[%clk 0:00:14]} 55. Bb5 {[%clk 0:00:08]}  Ng6 {[%clk 0:00:13]} 56. Kd3 {[%clk 0:00:08]}  Kd5 {[%clk 0:00:12]} 57. Be8 {[%clk 0:00:08]}  Nh8 {[%clk 0:00:11]} 58. Bd7 {[%clk 0:00:08]}  Ng6 {[%clk 0:00:09]} 59. Bf5 {[%clk 0:00:08]}  Ne5+ {[%clk 0:00:08]} 60. Kd2 {[%clk 0:00:07]}  Nf7 {[%clk 0:00:09]} 61. Kc2 {[%clk 0:00:06]}  Kc5 {[%clk 0:00:07]} 62. Kd3 {[%clk 0:00:06]}  Kd5 {[%clk 0:00:06]} 63. Be4+ {[%clk 0:00:06]}  Kc5 {[%clk 0:00:06]} 64. Bf5 {[%clk 0:00:06]}  Kd5 {[%clk 0:00:06]} 65. Bc8 {[%clk 0:00:06]}  Ne5+ {[%clk 0:00:05]} 66. Kd2 {[%clk 0:00:06]}  Nf7 {[%clk 0:00:06]} 67. Bb7+ {[%clk 0:00:06]}  Kc5 {[%clk 0:00:05]} 68. Kd3 {[%clk 0:00:06]}  Nh8 {[%clk 0:00:02]} 69. Ke4 {[%clk 0:00:06]}  Kc4 {[%clk 0:00:01]} 70. Kf5 {[%clk 0:00:06]}  d3 {[%clk 0:00:01]} 71. Ba6+ {[%clk 0:00:06]}  Kd4 {[%clk 0:00:01]} 72. Kxg5 {[%clk 0:00:06]}  d2 {[%clk 0:00:01]} 73. Be2 {[%clk 0:00:06]}  Ke5 {[%clk 0:00:01]} 74. Kh6 {[%clk 0:00:06]}  Kf6 {[%clk 0:00:01]} 75. g5+ {[%clk 0:00:06]}  Kf7 {[%clk 0:00:01]} 76. Kh5 {[%clk 0:00:07]}  Kg7 {[%clk 0:00:01]} 77. Kg4 {[%clk 0:00:07]}  Ng6 {[%clk 0:00:01]} 78. Kf3 {[%clk 0:00:06]}  Ne5+ {[%clk 0:00:01]} 79. Ke3 {[%clk 0:00:07]} 1-0


[Site "https://www.chess.com"]

[Event "Titled Tuesday Blitz January 25 2022"]
[White "Kosakowski, Jakub"]
[Black "Kashefi, Amir Hosein"]
[WhiteFideId "1185080"]
[BlackFideId "12557935"]
[WhiteElo "2476"]
[BlackElo "2098"]
[Result "1-0"]
[Round "10"]
[TimeControl "180+1"]
[Date "2022.01.26"]
[WhiteClock "0:01:27"]
[BlackClock "0:00:02"]

1. Na3 {[%clk 0:03:00]}  d5 {[%clk 0:02:57]} 2. c4 {[%clk 0:02:58]}  e6 {[%clk 0:02:57]} 3. Nf3 {[%clk 0:02:58]}  Nf6 {[%clk 0:02:55]} 4. d4 {[%clk 0:02:56]}  Bxa3 {[%clk 0:02:52]} 5. Qa4+ {[%clk 0:02:56]}  Nc6 {[%clk 0:02:49]} 6. Qxa3 {[%clk 0:02:57]}  dxc4 {[%clk 0:02:48]} 7. e3 {[%clk 0:02:56]}  b5 {[%clk 0:02:46]} 8. Qc5 {[%clk 0:02:51]}  Qd5 {[%clk 0:02:44]} 9. a4 {[%clk 0:02:49]}  Qxc5 {[%clk 0:02:42]} 10. dxc5 {[%clk 0:02:50]}  Nb4 {[%clk 0:02:39]} 11. Nd4 {[%clk 0:02:37]}  e5 {[%clk 0:02:04]} 12. Bd2 {[%clk 0:02:37]}  Nd3+ {[%clk 0:01:36]} 13. Bxd3 {[%clk 0:02:35]}  exd4 {[%clk 0:01:37]} 14. Bf1 {[%clk 0:02:30]}  dxe3 {[%clk 0:01:27]} 15. Bxe3 {[%clk 0:02:28]}  c6 {[%clk 0:01:26]} 16. b3 {[%clk 0:02:24]}  a5 {[%clk 0:01:19]} 17. bxc4 {[%clk 0:02:17]}  b4 {[%clk 0:01:19]} 18. Be2 {[%clk 0:02:16]}  Bf5 {[%clk 0:01:15]} 19. f3 {[%clk 0:02:15]}  O-O-O {[%clk 0:01:14]} 20. Kf2 {[%clk 0:02:14]}  Rhe8 {[%clk 0:01:09]} 21. Rhd1 {[%clk 0:02:09]}  Bc2 {[%clk 0:00:58]} 22. Rd6 {[%clk 0:02:07]}  Kb7 {[%clk 0:00:51]} 23. Bd4 {[%clk 0:02:03]}  b3 {[%clk 0:00:44]} 24. Bd1 {[%clk 0:01:58]}  Rxd6 {[%clk 0:00:33]} 25. cxd6 {[%clk 0:01:57]}  c5 {[%clk 0:00:33]} 26. Bc3 {[%clk 0:01:43]}  Bxd1 {[%clk 0:00:27]} 27. Rxd1 {[%clk 0:01:42]}  Kc6 {[%clk 0:00:27]} 28. Bxa5 {[%clk 0:01:35]}  Ra8 {[%clk 0:00:25]} 29. Bc3 {[%clk 0:01:36]}  Nd7 {[%clk 0:00:01]} 30. a5 {[%clk 0:01:35]}  f6 {[%clk 0:00:01]} 31. Rb1 {[%clk 0:01:31]}  Rb8 {[%clk 0:00:02]} 32. Ke3 {[%clk 0:01:31]}  Kxd6 {[%clk 0:00:02]} 33. Kd3 {[%clk 0:01:31]}  Kc6 {[%clk 0:00:03]} 34. Bd2 {[%clk 0:01:28]}  Rb7 {[%clk 0:00:03]} 35. Kc3 {[%clk 0:01:28]}  Ne5 {[%clk 0:00:04]} 36. Rxb3 {[%clk 0:01:27]}  Ra7 {[%clk 0:00:04]} 37. Rb6+ {[%clk 0:01:27]}  Kc7 {[%clk 0:00:04]} 38. Kb3 {[%clk 0:01:28]}  Nc6 {[%clk 0:00:04]} 39. Ka4 {[%clk 0:01:28]}  Nd4 {[%clk 0:00:01]} 40. Bf4+ {[%clk 0:01:27]}  Kd7 {[%clk 0:00:02]} 41. a6 {[%clk 0:01:27]}  Kc8 {[%clk 0:00:02]} 42. Rb8+ {[%clk 0:01:26]}  Kd7 {[%clk 0:00:02]} 43. Rb7+ {[%clk 0:01:27]} 1-0


[Site "https://www.chess.com"]

[Event "Titled Tuesday Blitz January 25 2022"]
[White "Kosteniuk, Alexandra"]
[Black "Brunner, Nicolas"]
[WhiteFideId "4128125"]
[BlackFideId "620246"]
[WhiteElo "2469"]
[BlackElo "2372"]
[Result "1-0"]
[Round "10"]
[TimeControl "180+1"]
[Date "2022.01.26"]
[WhiteClock "0:00:34"]
[BlackClock "0:00:01"]

1. e4 {[%clk 0:03:00]}  e5 {[%clk 0:02:56]} 2. Nf3 {[%clk 0:02:59]}  Nc6 {[%clk 0:02:55]} 3. Bb5 {[%clk 0:02:59]}  a6 {[%clk 0:02:55]} 4. Ba4 {[%clk 0:03:00]}  Nf6 {[%clk 0:02:54]} 5. d4 {[%clk 0:02:59]}  exd4 {[%clk 0:02:51]} 6. O-O {[%clk 0:02:59]}  Be7 {[%clk 0:02:48]} 7. e5 {[%clk 0:02:58]}  Ne4 {[%clk 0:02:44]} 8. Nxd4 {[%clk 0:02:58]}  O-O {[%clk 0:02:43]} 9. Nf5 {[%clk 0:02:55]}  d5 {[%clk 0:02:42]} 10. Nxe7+ {[%clk 0:02:55]}  Qxe7 {[%clk 0:02:41]} 11. Qxd5 {[%clk 0:02:32]}  Bf5 {[%clk 0:02:27]} 12. Bxc6 {[%clk 0:02:12]}  Rfd8 {[%clk 0:02:19]} 13. Qc4 {[%clk 0:01:46]}  bxc6 {[%clk 0:02:19]} 14. f3 {[%clk 0:01:46]}  Qc5+ {[%clk 0:02:13]} 15. Qxc5 {[%clk 0:01:46]}  Nxc5 {[%clk 0:02:14]} 16. Be3 {[%clk 0:01:42]}  Nd7 {[%clk 0:02:09]} 17. f4 {[%clk 0:01:37]}  Bxc2 {[%clk 0:02:08]} 18. Na3 {[%clk 0:01:37]}  Be4 {[%clk 0:02:07]} 19. Nc4 {[%clk 0:01:30]}  Rab8 {[%clk 0:01:48]} 20. Rfd1 {[%clk 0:01:26]}  Nf8 {[%clk 0:01:46]} 21. b3 {[%clk 0:01:23]}  Ne6 {[%clk 0:01:42]} 22. Kf2 {[%clk 0:01:22]}  g6 {[%clk 0:01:32]} 23. g4 {[%clk 0:01:21]}  Bc2 {[%clk 0:01:19]} 24. Rdc1 {[%clk 0:01:16]}  Be4 {[%clk 0:01:12]} 25. Na5 {[%clk 0:01:16]}  Nd4 {[%clk 0:01:05]} 26. Rc4 {[%clk 0:01:10]}  Nc2 {[%clk 0:00:52]} 27. Rxe4 {[%clk 0:01:10]}  Nxa1 {[%clk 0:00:52]} 28. Nxc6 {[%clk 0:01:10]}  Nc2 {[%clk 0:00:34]} 29. Nxb8 {[%clk 0:01:10]}  Rxb8 {[%clk 0:00:31]} 30. Bc5 {[%clk 0:01:09]}  a5 {[%clk 0:00:24]} 31. Rc4 {[%clk 0:01:05]}  Nb4 {[%clk 0:00:21]} 32. Bxb4 {[%clk 0:01:03]}  axb4 {[%clk 0:00:21]} 33. Rxc7 {[%clk 0:01:02]}  Ra8 {[%clk 0:00:20]} 34. Rc2 {[%clk 0:01:02]}  Kf8 {[%clk 0:00:20]} 35. Ke3 {[%clk 0:01:03]}  Ke7 {[%clk 0:00:20]} 36. Ke4 {[%clk 0:01:03]}  h5 {[%clk 0:00:18]} 37. h3 {[%clk 0:01:02]}  hxg4 {[%clk 0:00:13]} 38. hxg4 {[%clk 0:01:03]}  Ra5 {[%clk 0:00:13]} 39. f5 {[%clk 0:01:01]}  gxf5+ {[%clk 0:00:12]} 40. gxf5 {[%clk 0:01:01]}  Ke8 {[%clk 0:00:12]} 41. Rc8+ {[%clk 0:00:55]}  Kd7 {[%clk 0:00:12]} 42. Rf8 {[%clk 0:00:52]}  Ke7 {[%clk 0:00:11]} 43. Rb8 {[%clk 0:00:52]}  Rxa2 {[%clk 0:00:11]} 44. f6+ {[%clk 0:00:51]}  Kd7 {[%clk 0:00:08]} 45. Rb7+ {[%clk 0:00:51]}  Ke8 {[%clk 0:00:07]} 46. Rxb4 {[%clk 0:00:51]}  Re2+ {[%clk 0:00:06]} 47. Kd5 {[%clk 0:00:52]}  Rd2+ {[%clk 0:00:06]} 48. Kc6 {[%clk 0:00:49]}  Rc2+ {[%clk 0:00:03]} 49. Rc4 {[%clk 0:00:49]}  Re2 {[%clk 0:00:02]} 50. Kd5 {[%clk 0:00:40]}  Rb2 {[%clk 0:00:02]} 51. Rc8+ {[%clk 0:00:33]}  Kd7 {[%clk 0:00:02]} 52. Rf8 {[%clk 0:00:33]}  Rd2+ {[%clk 0:00:01]} 53. Ke4 {[%clk 0:00:34]} 1-0


[Site "https://www.chess.com"]

[Event "Titled Tuesday Blitz January 25 2022"]
[White "Kretov, Evgenij"]
[Black "Triapishko, Alexandr"]
[WhiteFideId "4167821"]
[BlackFideId "14122286"]
[WhiteElo "2303"]
[BlackElo "2479"]
[Result "0-1"]
[Round "10"]
[TimeControl "180+1"]
[Date "2022.01.26"]
[WhiteClock "0:00:16"]
[BlackClock "0:00:02"]

1. d4 {[%clk 0:03:00]}  Nf6 {[%clk 0:02:58]} 2. c4 {[%clk 0:03:00]}  e6 {[%clk 0:02:58]} 3. Nc3 {[%clk 0:03:00]}  Bb4 {[%clk 0:02:58]} 4. Bg5 {[%clk 0:03:01]}  h6 {[%clk 0:02:58]} 5. Bh4 {[%clk 0:03:01]}  c5 {[%clk 0:02:57]} 6. d5 {[%clk 0:03:01]}  exd5 {[%clk 0:02:50]} 7. cxd5 {[%clk 0:03:01]}  d6 {[%clk 0:02:49]} 8. e3 {[%clk 0:03:01]}  Nbd7 {[%clk 0:02:49]} 9. Bd3 {[%clk 0:03:01]}  Bxc3+ {[%clk 0:02:48]} 10. bxc3 {[%clk 0:03:00]}  Qa5 {[%clk 0:02:49]} 11. Ne2 {[%clk 0:03:00]}  Nxd5 {[%clk 0:02:49]} 12. O-O {[%clk 0:02:59]}  Nxc3 {[%clk 0:02:39]} 13. Nxc3 {[%clk 0:02:59]}  Qxc3 {[%clk 0:02:40]} 14. Rc1 {[%clk 0:03:00]}  Qe5 {[%clk 0:02:20]} 15. Bg3 {[%clk 0:02:55]}  Qf6 {[%clk 0:02:20]} 16. Bb5 {[%clk 0:02:55]}  Ke7 {[%clk 0:02:14]} 17. Qd2 {[%clk 0:02:40]}  Ne5 {[%clk 0:01:04]} 18. f4 {[%clk 0:02:38]}  Nc6 {[%clk 0:00:55]} 19. Kh1 {[%clk 0:02:36]}  h5 {[%clk 0:00:49]} 20. e4 {[%clk 0:02:34]}  Qd4 {[%clk 0:00:26]} 21. Qe1 {[%clk 0:02:19]}  f6 {[%clk 0:00:23]} 22. e5 {[%clk 0:02:16]}  Bf5 {[%clk 0:00:14]} 23. exd6+ {[%clk 0:01:48]}  Kf7 {[%clk 0:00:12]} 24. Bxc6 {[%clk 0:01:36]}  bxc6 {[%clk 0:00:12]} 25. Qe7+ {[%clk 0:01:35]}  Kg6 {[%clk 0:00:12]} 26. Rcd1 {[%clk 0:01:29]}  Rhe8 {[%clk 0:00:07]} 27. Qc7 {[%clk 0:01:19]}  Qc4 {[%clk 0:00:03]} 28. d7 {[%clk 0:01:14]}  Red8 {[%clk 0:00:04]} 29. Rfe1 {[%clk 0:01:11]}  Qf7 {[%clk 0:00:03]} 30. Qxc6 {[%clk 0:01:07]}  Bxd7 {[%clk 0:00:04]} 31. Qxc5 {[%clk 0:00:58]}  Bf5 {[%clk 0:00:04]} 32. Rxd8 {[%clk 0:00:46]}  Rxd8 {[%clk 0:00:05]} 33. Bf2 {[%clk 0:00:43]}  Qxa2 {[%clk 0:00:03]} 34. Qxa7 {[%clk 0:00:33]}  Qxa7 {[%clk 0:00:03]} 35. Bxa7 {[%clk 0:00:33]}  Rd2 {[%clk 0:00:04]} 36. Kg1 {[%clk 0:00:30]}  Rc2 {[%clk 0:00:03]} 37. Bf2 {[%clk 0:00:28]}  Rc4 {[%clk 0:00:03]} 38. Be3 {[%clk 0:00:27]}  Be4 {[%clk 0:00:02]} 39. Re2 {[%clk 0:00:26]}  Kf5 {[%clk 0:00:03]} 40. Kf2 {[%clk 0:00:26]}  Rc3 {[%clk 0:00:03]} 41. Bd2 {[%clk 0:00:22]}  Rb3 {[%clk 0:00:03]} 42. Be3 {[%clk 0:00:20]}  h4 {[%clk 0:00:03]} 43. h3 {[%clk 0:00:19]}  Rb1 {[%clk 0:00:02]} 44. Ra2 {[%clk 0:00:18]}  Rh1 {[%clk 0:00:01]} 45. Ra5+ {[%clk 0:00:18]}  Kg6 {[%clk 0:00:02]} 46. Ra2 {[%clk 0:00:15]}  Rd1 {[%clk 0:00:01]} 47. Rd2 {[%clk 0:00:15]}  Rb1 {[%clk 0:00:01]} 48. Rd4 {[%clk 0:00:15]}  Bf5 {[%clk 0:00:01]} 49. Rd2 {[%clk 0:00:15]}  Rb7 {[%clk 0:00:02]} 50. Ra2 {[%clk 0:00:15]}  Rf7 {[%clk 0:00:03]} 51. Rd2 {[%clk 0:00:15]}  Re7 {[%clk 0:00:03]} 52. Re2 {[%clk 0:00:14]}  Re8 {[%clk 0:00:03]} 53. Rd2 {[%clk 0:00:15]}  Ra8 {[%clk 0:00:03]} 54. Re2 {[%clk 0:00:15]}  Be4 {[%clk 0:00:03]} 55. Rd2 {[%clk 0:00:15]}  Kf5 {[%clk 0:00:04]} 56. Rb2 {[%clk 0:00:15]}  Ra5 {[%clk 0:00:03]} 57. Rd2 {[%clk 0:00:15]}  Ra1 {[%clk 0:00:02]} 58. Rb2 {[%clk 0:00:15]}  Rh1 {[%clk 0:00:02]} 59. Rb5+ {[%clk 0:00:16]}  Ke6 {[%clk 0:00:02]} 60. Rb2 {[%clk 0:00:16]}  Kd5 {[%clk 0:00:02]} 61. Rd2+ {[%clk 0:00:16]}  Kc6 {[%clk 0:00:03]} 62. Rd4 {[%clk 0:00:16]}  f5 {[%clk 0:00:02]} 63. Rd2 {[%clk 0:00:16]}  Ra1 {[%clk 0:00:02]} 64. Rb2 {[%clk 0:00:16]}  Kd5 {[%clk 0:00:01]} 65. Rd2+ {[%clk 0:00:16]}  Kc4 {[%clk 0:00:01]} 66. Rd4+ {[%clk 0:00:16]}  Kb3 {[%clk 0:00:02]} 67. Rd2 {[%clk 0:00:16]}  Rb1 {[%clk 0:00:02]} 68. Re2 {[%clk 0:00:17]}  g6 {[%clk 0:00:02]} 69. Rd2 {[%clk 0:00:16]}  Kc3 {[%clk 0:00:02]} 70. Re2 {[%clk 0:00:16]}  Bd3 {[%clk 0:00:02]} 71. Rd2 {[%clk 0:00:16]}  Rf1# {[%clk 0:00:02]} 0-1


[Site "https://www.chess.com"]

[Event "Titled Tuesday Blitz January 25 2022"]
[White "Le, Tuan Minh"]
[Black "Sviridov, Valery"]
[WhiteFideId "12401153"]
[BlackFideId "4120680"]
[WhiteElo "2450"]
[BlackElo "2454"]
[Result "1/2-1/2"]
[Round "10"]
[TimeControl "180+1"]
[Date "2022.01.26"]
[WhiteClock "0:00:19"]
[BlackClock "0:00:37"]

1. d4 {[%clk 0:03:00]}  g6 {[%clk 0:02:59]} 2. Nf3 {[%clk 0:02:59]}  Bg7 {[%clk 0:02:59]} 3. c3 {[%clk 0:02:56]}  d6 {[%clk 0:02:58]} 4. e4 {[%clk 0:02:54]}  Nf6 {[%clk 0:02:56]} 5. Bd3 {[%clk 0:02:53]}  O-O {[%clk 0:02:56]} 6. O-O {[%clk 0:02:54]}  Nc6 {[%clk 0:02:56]} 7. Bg5 {[%clk 0:02:52]}  h6 {[%clk 0:02:55]} 8. Bh4 {[%clk 0:02:52]}  g5 {[%clk 0:02:51]} 9. Bg3 {[%clk 0:02:52]}  Nh5 {[%clk 0:02:52]} 10. Nbd2 {[%clk 0:02:44]}  e6 {[%clk 0:02:51]} 11. Ne1 {[%clk 0:02:35]}  Nxg3 {[%clk 0:02:50]} 12. hxg3 {[%clk 0:02:36]}  e5 {[%clk 0:02:21]} 13. d5 {[%clk 0:02:36]}  Ne7 {[%clk 0:02:22]} 14. g4 {[%clk 0:02:37]}  c6 {[%clk 0:02:21]} 15. c4 {[%clk 0:02:36]}  Ng6 {[%clk 0:02:20]} 16. g3 {[%clk 0:02:35]}  Qd7 {[%clk 0:02:12]} 17. Be2 {[%clk 0:02:34]}  Qd8 {[%clk 0:02:02]} 18. Nc2 {[%clk 0:02:33]}  Bd7 {[%clk 0:01:56]} 19. Ne3 {[%clk 0:02:33]}  Ne7 {[%clk 0:01:56]} 20. Kg2 {[%clk 0:02:29]}  Rc8 {[%clk 0:01:56]} 21. Rh1 {[%clk 0:02:28]}  Qb6 {[%clk 0:01:54]} 22. b3 {[%clk 0:02:26]}  Qd4 {[%clk 0:01:47]} 23. Nf3 {[%clk 0:02:10]}  Qxd1 {[%clk 0:01:41]} 24. Raxd1 {[%clk 0:02:11]}  cxd5 {[%clk 0:01:41]} 25. cxd5 {[%clk 0:01:19]}  b5 {[%clk 0:01:38]} 26. Rc1 {[%clk 0:01:18]}  Rxc1 {[%clk 0:01:29]} 27. Rxc1 {[%clk 0:01:18]}  Rc8 {[%clk 0:01:30]} 28. Rxc8+ {[%clk 0:01:15]}  Nxc8 {[%clk 0:01:30]} 29. Nd2 {[%clk 0:00:50]}  Bf6 {[%clk 0:01:27]} 30. Nf5 {[%clk 0:00:44]}  Kh7 {[%clk 0:01:27]} 31. b4 {[%clk 0:00:31]}  Bd8 {[%clk 0:01:24]} 32. Nb3 {[%clk 0:00:31]}  a6 {[%clk 0:01:21]} 33. Bd3 {[%clk 0:00:30]}  Kg6 {[%clk 0:01:17]} 34. f3 {[%clk 0:00:29]}  Bb6 {[%clk 0:01:16]} 35. Kf1 {[%clk 0:00:29]}  h5 {[%clk 0:01:13]} 36. gxh5+ {[%clk 0:00:28]}  Kxh5 {[%clk 0:01:14]} 37. g4+ {[%clk 0:00:25]}  Kg6 {[%clk 0:01:14]} 38. Ng3 {[%clk 0:00:26]}  Ne7 {[%clk 0:01:07]} 39. Ke2 {[%clk 0:00:19]}  f6 {[%clk 0:01:07]} 40. Nd2 {[%clk 0:00:15]}  Kf7 {[%clk 0:01:06]} 41. Kd1 {[%clk 0:00:13]}  Ng6 {[%clk 0:01:04]} 42. Ne2 {[%clk 0:00:14]}  Nf4 {[%clk 0:01:02]} 43. Nxf4 {[%clk 0:00:14]}  gxf4 {[%clk 0:01:02]} 44. Ke2 {[%clk 0:00:13]}  Kg6 {[%clk 0:01:02]} 45. Nb3 {[%clk 0:00:13]}  Kg5 {[%clk 0:01:01]} 46. Kf1 {[%clk 0:00:14]}  Kh4 {[%clk 0:01:00]} 47. Kg2 {[%clk 0:00:14]}  Kg5 {[%clk 0:01:00]} 48. Be2 {[%clk 0:00:14]}  Be3 {[%clk 0:01:00]} 49. Bd1 {[%clk 0:00:14]}  Bb6 {[%clk 0:00:59]} 50. Be2 {[%clk 0:00:14]}  Kg6 {[%clk 0:00:57]} 51. Bd3 {[%clk 0:00:15]}  Kf7 {[%clk 0:00:57]} 52. Be2 {[%clk 0:00:15]}  Ke7 {[%clk 0:00:58]} 53. Kh3 {[%clk 0:00:16]}  Bf2 {[%clk 0:00:57]} 54. Kg2 {[%clk 0:00:16]}  Be1 {[%clk 0:00:58]} 55. a3 {[%clk 0:00:11]}  Bc3 {[%clk 0:00:58]} 56. Na5 {[%clk 0:00:11]}  Bb2 {[%clk 0:00:58]} 57. a4 {[%clk 0:00:06]}  Bc3 {[%clk 0:00:58]} 58. axb5 {[%clk 0:00:05]}  axb5 {[%clk 0:00:32]} 59. Nc6+ {[%clk 0:00:05]}  Bxc6 {[%clk 0:00:32]} 60. dxc6 {[%clk 0:00:06]}  Bxb4 {[%clk 0:00:31]} 61. Bxb5 {[%clk 0:00:07]}  Ba5 {[%clk 0:00:30]} 62. Bc4 {[%clk 0:00:07]}  Kd8 {[%clk 0:00:29]} 63. Kh3 {[%clk 0:00:07]}  Kc7 {[%clk 0:00:29]} 64. Bd5 {[%clk 0:00:06]}  Be1 {[%clk 0:00:28]} 65. Kg2 {[%clk 0:00:05]}  Bh4 {[%clk 0:00:29]} 66. Kf1 {[%clk 0:00:06]}  Bg3 {[%clk 0:00:29]} 67. Ke2 {[%clk 0:00:07]}  Bh4 {[%clk 0:00:29]} 68. Kd3 {[%clk 0:00:08]}  Bg3 {[%clk 0:00:30]} 69. Kc4 {[%clk 0:00:08]}  Bh4 {[%clk 0:00:30]} 70. Kb5 {[%clk 0:00:09]}  Bg5 {[%clk 0:00:31]} 71. Be6 {[%clk 0:00:10]}  Bh4 {[%clk 0:00:31]} 72. Bd7 {[%clk 0:00:10]}  Bg5 {[%clk 0:00:31]} 73. Kc4 {[%clk 0:00:11]}  Bh4 {[%clk 0:00:32]} 74. Kd5 {[%clk 0:00:11]}  Bg5 {[%clk 0:00:32]} 75. Ke6 {[%clk 0:00:12]}  Bh4 {[%clk 0:00:33]} 76. Kf5 {[%clk 0:00:12]}  Bg5 {[%clk 0:00:33]} 77. Kg6 {[%clk 0:00:13]}  Bh4 {[%clk 0:00:34]} 78. Kh6 {[%clk 0:00:13]}  Bg5+ {[%clk 0:00:34]} 79. Kh5 {[%clk 0:00:14]}  Kd8 {[%clk 0:00:35]} 80. Be6 {[%clk 0:00:14]}  Kc7 {[%clk 0:00:35]} 81. Bd5 {[%clk 0:00:15]}  Kd8 {[%clk 0:00:35]} 82. Kg6 {[%clk 0:00:16]}  Kc7 {[%clk 0:00:36]} 83. Kf5 {[%clk 0:00:17]}  Bh4 {[%clk 0:00:36]} 84. Kg6 {[%clk 0:00:18]}  Bg5 {[%clk 0:00:36]} 85. Kf5 {[%clk 0:00:18]}  Kd8 {[%clk 0:00:37]} 86. Kg6 {[%clk 0:00:19]}  Kc7 {[%clk 0:00:37]} 1/2-1/2


[Site "https://www.chess.com"]

[Event "Titled Tuesday Blitz January 25 2022"]
[White "Martinez Alcantara, Jose Eduardo"]
[Black "Maghsoodloo, Parham"]
[WhiteFideId "3805662"]
[BlackFideId "12539929"]
[WhiteElo "2690"]
[BlackElo "2630"]
[Result "1-0"]
[Round "10"]
[TimeControl "180+1"]
[Date "2022.01.26"]
[WhiteClock "0:00:06"]
[BlackClock "0:00:04"]

1. e4 {[%clk 0:03:00]}  c5 {[%clk 0:02:59]} 2. Nf3 {[%clk 0:03:01]}  Nc6 {[%clk 0:02:59]} 3. c3 {[%clk 0:03:01]}  d5 {[%clk 0:02:53]} 4. Bd3 {[%clk 0:02:52]}  g6 {[%clk 0:02:48]} 5. Qe2 {[%clk 0:02:47]}  Bg7 {[%clk 0:02:46]} 6. h3 {[%clk 0:02:43]}  Nf6 {[%clk 0:02:33]} 7. e5 {[%clk 0:02:34]}  Nd7 {[%clk 0:02:28]} 8. Bb5 {[%clk 0:02:34]}  O-O {[%clk 0:02:18]} 9. Bxc6 {[%clk 0:02:33]}  bxc6 {[%clk 0:02:19]} 10. O-O {[%clk 0:02:32]}  c4 {[%clk 0:02:17]} 11. b3 {[%clk 0:02:14]}  Ba6 {[%clk 0:02:05]} 12. Ba3 {[%clk 0:02:02]}  e6 {[%clk 0:01:48]} 13. Bxf8 {[%clk 0:01:42]}  Qxf8 {[%clk 0:01:47]} 14. b4 {[%clk 0:01:39]}  c5 {[%clk 0:01:45]} 15. b5 {[%clk 0:01:32]}  Bxb5 {[%clk 0:01:45]} 16. Na3 {[%clk 0:01:33]}  Ba4 {[%clk 0:01:38]} 17. Rab1 {[%clk 0:01:33]}  a6 {[%clk 0:01:31]} 18. Rfe1 {[%clk 0:01:28]}  Qd8 {[%clk 0:01:28]} 19. d3 {[%clk 0:01:19]}  cxd3 {[%clk 0:01:28]} 20. Qxd3 {[%clk 0:01:19]}  Qa5 {[%clk 0:01:24]} 21. c4 {[%clk 0:01:14]}  d4 {[%clk 0:01:25]} 22. Re2 {[%clk 0:00:44]}  Rc8 {[%clk 0:01:18]} 23. Nc2 {[%clk 0:00:40]}  Bh6 {[%clk 0:01:06]} 24. Nce1 {[%clk 0:00:38]}  Nb8 {[%clk 0:01:02]} 25. Qa3 {[%clk 0:00:35]}  Nc6 {[%clk 0:00:24]} 26. Nd3 {[%clk 0:00:35]}  Qc3 {[%clk 0:00:25]} 27. Qxa4 {[%clk 0:00:26]}  Qxd3 {[%clk 0:00:25]} 28. Ree1 {[%clk 0:00:19]}  Nb4 {[%clk 0:00:20]} 29. Red1 {[%clk 0:00:19]}  Qxc4 {[%clk 0:00:17]} 30. a3 {[%clk 0:00:20]}  Qc2 {[%clk 0:00:17]} 31. Qd7 {[%clk 0:00:19]}  Nd3 {[%clk 0:00:13]} 32. Qxc8+ {[%clk 0:00:19]}  Kg7 {[%clk 0:00:14]} 33. Rf1 {[%clk 0:00:11]}  Nxf2 {[%clk 0:00:10]} 34. Rb8 {[%clk 0:00:11]}  Nxh3+ {[%clk 0:00:07]} 35. gxh3 {[%clk 0:00:11]}  Be3+ {[%clk 0:00:08]} 36. Kh1 {[%clk 0:00:11]}  Kh6 {[%clk 0:00:07]} 37. Qd8 {[%clk 0:00:09]}  Qe2 {[%clk 0:00:06]} 38. Qh4+ {[%clk 0:00:09]}  Kg7 {[%clk 0:00:06]} 39. Qf6+ {[%clk 0:00:09]}  Kh6 {[%clk 0:00:06]} 40. Nh2 {[%clk 0:00:08]}  Bg5 {[%clk 0:00:05]} 41. Qf3 {[%clk 0:00:05]}  Qc2 {[%clk 0:00:04]} 42. Ng4+ {[%clk 0:00:05]}  Kh5 {[%clk 0:00:05]} 43. Rh8 {[%clk 0:00:04]}  h6 {[%clk 0:00:03]} 44. Nf6+ {[%clk 0:00:05]}  Kh4 {[%clk 0:00:04]} 45. Qg4# {[%clk 0:00:06]} 1-0


[Site "https://www.chess.com"]